fUSD/lending_fUSD_20241215
["ID","MTS","AMOUNT","RATE_DAILY","PERIOD"]
[345420822,1734249190696,-300.0,0.00018899,2]
[345420823,1734249190706,-300.0,0.00018899,2]
[345420824,1734249190716,-300.0,0.00018899,2]
[345420825,1734249190725,-300.0,0.00018899,2]
[345420826,1734249190734,-300.0,0.00018899,2]
[345420827,1734249190743,-300.0,0.00018899,2]
[345420828,1734249190753,-5000.0,0.000189,2]
[345420829,1734249190762,-113034.49700494,0.000189,2]
[345420830,1734249190775,-150.0,0.00018903,2]
[345420831,1734249190784,-150.0,0.00018907,2]
[345420832,1734249190794,-150.0,0.00018909,2]
[345420833,1734249190803,-1500.0,0.00018912,2]
[345420834,1734249190812,-150.0,0.00018912,2]
[345420835,1734249190822,-150.0,0.00018914,2]
[345420836,1734249190831,-150.0,0.00018914,2]
[345420837,1734249190841,-150.0,0.00018916,2]
[345420838,1734249190850,-150.0,0.00018918,2]
[345420839,1734249190859,-150.0,0.00018919,2]
[345420840,1734249190868,-150.0,0.00018921,2]
[345420841,1734249190878,-150.0,0.00018926,2]
[345420842,1734249190887,-2811.0,0.00018931,2]
[345420843,1734249190896,-1484.0,0.00018931,2]
[345420844,1734249190905,-150.0,0.00018935,2]
[345420845,1734249190914,-150.0,0.00018935,2]
[345420846,1734249190923,-150.0,0.00018945,2]
[345420847,1734249190932,-150.0,0.00018954,2]
[345420848,1734249190941,-150.0,0.00018956,2]
[345420849,1734249190950,-150.0,0.00018959,2]
[345420850,1734249190963,-150.0,0.00018962,2]
[345420851,1734249190971,-150.0,0.00018964,2]
[345420852,1734249190981,-150.0,0.00018968,2]
[345420853,1734249190989,-1500.0,0.00018978,2]
[345420854,1734249190999,-1500.0,0.0001899,2]
[345420855,1734249191008,-300.0,0.00018999,2]
[345420856,1734249191019,-300.0,0.00018999,2]
[345420857,1734249191029,-300.0,0.00018999,2]
[345420858,1734249191039,-300.0,0.00018999,2]
[345420859,1734249191048,-300.0,0.00018999,2]
[345420860,1734249191057,-300.0,0.00018999,2]
[345420861,1734249191066,-300.0,0.00018999,2]
[345420862,1734249191075,-68984.04781879,0.00019,2]
[345420863,1734249191085,-11599.04016272,0.00019,2]
[345420864,1734249191094,-5000.0,0.00019,2]
[345420865,1734249191103,-3250.99,0.00019,3]
[345420866,1734249191112,-372.0,0.00019,2]
[345420867,1734249191123,-600.0,0.00019,2]
[345420868,1734249191134,-800.0,0.00019,2]
[345420869,1734249191144,-800.0,0.00019,2]
[345420870,1734249191155,-800.0,0.00019,2]
[345420871,1734249191166,-800.0,0.00019,2]
[345420872,1734249191176,-800.0,0.00019,2]
[345420873,1734249191187,-800.0,0.00019,2]
[345420874,1734249191199,-800.0,0.00019,2]
[345420875,1734249191207,-800.0,0.00019,2]
[345420876,1734249191219,-800.0,0.00019,2]
[345420877,1734249191230,-800.0,0.00019,2]
[345420878,1734249191240,-800.0,0.00019,2]
[345420879,1734249191251,-800.0,0.00019,2]
[345420880,1734249191260,-150.121514,0.00019048,2]
[345420881,1734249191272,-150.121514,0.00019148,3]
[345420882,1734249191281,-151.30664627,0.00019177,2]
[345420883,1734249191290,-563.55,0.00019178,2]
[345420884,1734249191300,-563.55,0.00019178,2]
[345420885,1734249191308,-563.55,0.00019178,2]
[345420886,1734249191318,-563.55,0.00019178,2]
[345420887,1734249191329,-563.55,0.00019178,2]
[345420888,1734249191339,-563.55,0.00019178,2]
[345420889,1734249191349,-563.55,0.00019178,2]
[345420890,1734249191359,-563.55,0.00019178,2]
[345420891,1734249191369,-563.55,0.00019178,2]
[345420892,1734249191378,-563.55,0.00019178,2]
[345420893,1734249191388,-563.55,0.00019178,2]
[345420894,1734249191397,-563.55,0.00019178,2]
[345420895,1734249191407,-563.55,0.00019178,2]
[345420896,1734249191416,-563.55,0.00019178,2]
[345420897,1734249191426,-563.55,0.00019178,2]
[345420898,1734249191435,-563.55,0.00019178,2]
[345420899,1734249191444,-563.55,0.00019178,2]
[345420900,1734249191453,-563.55,0.00019178,2]
[345420901,1734249191462,-563.55,0.00019178,2]
[345420902,1734249191471,-563.55,0.00019178,2]
[345420903,1734249191480,-563.55,0.00019178,2]
[345420904,1734249191489,-563.55,0.00019178,2]
[345420905,1734249191498,-563.55,0.00019178,2]
[345420906,1734249191507,-563.72976971,0.00019178,2]
[345420907,1734249191517,-4000.0,0.00019178,2]
[345420908,1734249191526,-151.0,0.00019178,2]
[345420909,1734249191535,-151.0,0.00019178,2]
[345420910,1734249191545,-151.0,0.00019178,2]
[345420911,1734249191557,-151.0,0.00019178,2]
[345420912,1734249191567,-151.0,0.00019178,2]
[345420913,1734249191576,-238.39148118,0.00019178,2]
[345420914,1734249191585,-208.0,0.0001918,2]
[345420915,1734249191595,-200.0,0.0001918,2]
[345420916,1734249191605,-570.64,0.000192,5]
[345420917,1734249191615,-2815.29499771,0.00019204,2]
[345420918,1734249191626,-1487.61225065,0.00019204,2]
[345420919,1734249191636,-500.0,0.00019212,2]
[345420920,1734249191646,-150.121516,0.00019248,5]
[345420921,1734249191657,-41856.90530225,0.00019316,2]
[345420922,1734249191667,-165.20561588,0.00019317,2]
[345420923,1734249191676,-150.121516,0.00019348,6]
[345420924,1734249191686,-150.121516,0.00019448,2]
[345420925,1734249191694,-1600.0,0.00019481,2]
[345420926,1734249191704,-333.121506,0.00019548,3]
[345420927,1734249191713,-1000.0,0.00019589,2]
[345420928,1734249191722,-1000.0,0.00019589,2]
[345420929,1734249191731,-1000.0,0.00019589,2]
[345420930,1734249191740,-1000.0,0.00019589,2]
[345420931,1734249191750,-1000.0,0.00019589,2]
[345420932,1734249191759,-1000.0,0.00019589,2]
[345420933,1734249191769,-1000.0,0.00019589,2]
[345420934,1734249191779,-1000.0,0.00019589,2]
[345420935,1734249191788,-1000.0,0.00019589,2]
[345420936,1734249191797,-1000.0,0.00019589,2]
[345420937,1734249191806,-1000.0,0.00019589,2]
[345420938,1734249191816,-1000.0,0.00019589,2]
[345420939,1734249191825,-1010.49849939,0.00019589,2]
[345420940,1734249191834,-300.0,0.00019609,2]
[345420941,1734249191844,-300.0,0.00019609,2]
[345420942,1734249191853,-300.0,0.00019609,2]
[345420943,1734249191862,-300.0,0.00019609,2]
[345420944,1734249191871,-300.0,0.00019609,2]
[345420945,1734249191880,-300.0,0.00019609,2]
[345420946,1734249191889,-300.0,0.00019609,2]
[345420947,1734249191898,-151.017454,0.00019609,4]
[345420948,1734249191907,-104801.20477282,0.0001961,2]
[345420949,1734249191917,-333.121506,0.00019648,3]
[345420950,1734249191926,-208.0,0.0001965,2]
[345420951,1734249191935,-200.0,0.0001965,2]
[345420952,1734249191944,-158.0,0.00019725,2]
[345420953,1734249191956,-1000.0,0.00019726,4]
[345420954,1734249191966,-1000.0,0.00019726,4]
[345420955,1734249191974,-1000.0,0.00019726,4]
[345420956,1734249191984,-1026.95062392,0.00019726,4]
[345420957,1734249191992,-999.0,0.00019726,2]
[345420958,1734249192002,-333.121506,0.00019748,3]
[345420959,1734249192011,-1630.61585827,0.00019781,7]
[345420960,1734249192021,-300.0,0.00019799,2]
[345420961,1734249192030,-300.0,0.00019799,2]
[345420962,1734249192039,-300.0,0.00019799,2]
[345420963,1734249192049,-300.0,0.00019799,2]
[345420964,1734249192058,-300.0,0.00019799,2]
[345420965,1734249192069,-300.0,0.00019799,2]
[345420966,1734249192083,-769612.21983236,0.000198,2]
[345420967,1734249192096,-152.0,0.000198,8]
[345420968,1734249192109,-294.88255168,0.000198,5]
[345420969,1734249192123,-2249.23297092,0.000198,2]
[345420970,1734249192138,-333.121506,0.00019848,4]
[345420971,1734249192154,-300.0,0.00019869,2]
[345420972,1734249192166,-300.0,0.00019869,2]
[345420973,1734249192178,-300.0,0.00019869,2]
[345420975,1734249192192,-300.0,0.00019869,2]
[345420976,1734249192206,-300.0,0.00019869,2]
[345420977,1734249192220,-300.0,0.00019869,2]
[345420978,1734249192234,-294318.0,0.0001987,3]
[345420979,1734249192248,-1155.11861656,0.0001988,2]
[345420980,1734249192262,-1155.11861656,0.0001988,2]
[345420981,1734249192277,-1155.11861656,0.0001988,2]
[345420982,1734249192289,-1155.11861656,0.0001988,2]
[345420983,1734249192303,-1155.11861656,0.0001988,2]
[345420984,1734249192317,-1155.11861656,0.0001988,2]
[345420985,1734249192329,-1155.11861656,0.0001988,2]
[345420986,1734249192340,-1155.11861656,0.0001988,2]
[345420987,1734249192354,-1155.11861656,0.0001988,2]
[345420988,1734249192368,-1155.11861656,0.0001988,2]
[345420989,1734249192378,-1155.11861656,0.0001988,2]
[345420990,1734249192390,-1155.11861656,0.0001988,2]
[345420991,1734249192405,-1155.11861656,0.0001988,2]
[345420992,1734249192416,-1155.11861656,0.0001988,2]
[345420993,1734249192427,-1155.11861656,0.0001988,2]
[345420994,1734249192443,-1155.11861656,0.0001988,2]
[345420995,1734249192455,-1155.11861656,0.0001988,2]
[345420996,1734249192467,-1155.11861656,0.0001988,2]
[345420997,1734249192479,-1155.11861656,0.0001988,2]
[345420998,1734249192493,-1155.11,0.0001988,2]
[345420999,1734249192505,-202.0,0.0001988,2]
[345421000,1734249192518,-202.0,0.0001988,2]
[345421001,1734249192531,-224.0,0.0001988,2]
[345421002,1734249192543,-202.0,0.0001988,2]
[345421003,1734249192555,-213.0,0.0001988,2]
[345421004,1734249192568,-208.0,0.0001988,2]
[345421005,1734249192581,-217.0,0.0001988,2]
[345421006,1734249192594,-275.0791497,0.0001988,2]
[345421007,1734249192607,-208.0,0.0001988,2]
[345421008,1734249192620,-217.0,0.0001988,2]
[345421009,1734249192633,-6915.19744551,0.0001988,2]
[345421010,1734249192646,-865.45550252,0.0001988,2]
[345421011,1734249192659,-15602.3070713,0.000199,2]
[345421012,1734249192671,-1150.70428037,0.000199,2]
[345421013,1734249192684,-5100.05181526,0.000199,2]
[345421014,1734249192697,-157.0,0.0001993,2]
[345421015,1734249192710,-333.121506,0.00019948,8]
[345421016,1734249192723,-443389.64240901,0.00019979,2]
[345421017,1734249192736,-3202453.11927446,0.0001998,2]
[345421018,1734249192750,-186560.42261728,0.0001998,2]
[345421019,1734249192763,-203.0,0.0001998,2]
[345421020,1734249192779,-202.0,0.0001998,2]
[345421021,1734249192793,-202.0,0.0001998,2]
[345421022,1734249192806,-202.0,0.0001998,2]
[345421023,1734249192820,-80094.42893542,0.00019995,2]
[345421024,1734249192833,-12000.0,0.0002,7]
[345421025,1734249192847,-3000.0,0.0002,2]
[345421026,1734249192861,-3000.0,0.0002,2]
[345421027,1734249192874,-3000.0,0.0002,2]
[345421028,1734249192887,-1289.36,0.0002,2]
[345421029,1734249192900,-3864.07859643,0.0002,2]
[345421030,1734249192914,-91480.48589432,0.0002,3]
[345421031,1734249192926,-600.0,0.0002,2]
[345421032,1734249192939,-600.0,0.0002,2]
[345421033,1734249192953,-10000.0,0.0002,30]
[345421034,1734249192969,-2075.66,0.0002,2]
[345421035,1734249192981,-15323.63,0.0002,2]
[345421036,1734249192994,-379.0,0.0002,2]
[345421037,1734249193009,-10010.0,0.0002,2]
[345421038,1734249193025,-5000.0,0.0002,14]
[345421039,1734249193039,-300.0,0.0002,2]
[345421040,1734249193052,-504.78,0.0002,2]
[345421041,1734249193065,-1062.26481762,0.0002,2]
[345421042,1734249193077,-5000.0,0.0002,2]
[345421043,1734249193090,-4557.10433761,0.0002,4]
[345421044,1734249193102,-20000.0,0.0002,2]
[345421045,1734249193115,-2110.0,0.0002,2]
[345421046,1734249193128,-4321.5214565,0.0002,2]
[345421047,1734249193141,-3580.0,0.0002,2]
[345421048,1734249193154,-14000.0,0.0002,4]
[345421049,1734249193167,-14138.0,0.0002,6]
[345421050,1734249193180,-306.594778,0.0002,2]
[345421051,1734249193192,-111650.20048048,0.0002,4]
[345421052,1734249193205,-25000.0,0.0002,2]
[345421053,1734249193216,-3000.0,0.0002,2]
[345421054,1734249193229,-158.0,0.0002,2]
[345421055,1734249193241,-158.0,0.0002,2]
[345421056,1734249193254,-333.121506,0.00020048,8]
[345421057,1734249193268,-2643.75,0.00020084,8]
[345421058,1734249193281,-208.0,0.0002012,2]
[345421059,1734249193294,-200.0,0.0002012,2]
[345421060,1734249193306,-1600.0,0.00020129,2]
[345421061,1734249193320,-333.121506,0.00020148,2]
[345421062,1734249193333,-333.121506,0.00020248,6]
[345421063,1734249193345,-1732.67792484,0.00020272,2]
[345421064,1734249193357,-1700.0,0.00020308,2]
[345421065,1734249193371,-4600.0,0.00020308,2]
[345421066,1734249193384,-333.121506,0.00020348,7]
[345421067,1734249193397,-500.0,0.0002037,2]
[345421068,1734249193409,-500.0,0.0002037,2]
[345421069,1734249193422,-500.0,0.0002037,2]
[345421070,1734249193434,-500.0,0.0002037,2]
[345421071,1734249193448,-500.0,0.0002037,2]
[345421072,1734249193461,-603.68887614,0.0002037,2]
[345421073,1734249193473,-1732.67792484,0.00020384,2]
[345421074,1734249193486,-1544.79,0.00020413,2]
[345421075,1734249193498,-333.121506,0.00020448,3]
[345421076,1734249193510,-40532.75115605,0.0002049,3]
[345421077,1734249193524,-1732.67792484,0.00020496,2]
[345421078,1734249193536,-2110.0,0.000205,2]
[345421079,1734249193549,-150.0,0.00020548,5]
[345421080,1734249193563,-179.86,0.00020548,2]
[345421081,1734249193575,-20384.69,0.00020548,2]
[345421082,1734249193588,-333.121506,0.00020548,5]
[345421083,1734249193600,-208.0,0.0002059,2]
[345421084,1734249193612,-200.0,0.0002059,2]
[345421085,1734249193624,-1732.67792484,0.00020608,2]
[345421086,1734249193637,-186.48,0.00020639,2]
[345421087,1734249193649,-1732.67792484,0.0002072,2]
[345421088,1734249193661,-439151.07,0.00020748,8]
[345421089,1734249193675,-333.121506,0.00020748,4]
[345421090,1734249193687,-15329.614441,0.000208,2]
[345421091,1734249193698,-1732.67792484,0.00020832,2]
[345421092,1734249193710,-333.121506,0.00020848,6]
[345421093,1734249193722,-3663.87031003,0.00020875,2]
[345421094,1734249193733,-158.22,0.00020884,2]
[345421095,1734249193745,-600.47003565,0.000209,2]
[345421096,1734249193756,-20439.485922,0.000209,2]
[345421097,1734249193770,-2012.74112577,0.000209,2]
[345421098,1734249193781,-2012.74112569,0.000209,2]
[345421099,1734249193792,-2012.74112569,0.000209,2]
[345421100,1734249193804,-2012.74112569,0.000209,2]
[345421101,1734249193816,-2012.74112569,0.000209,2]
[345421102,1734249193827,-2012.74112569,0.000209,2]
[345421103,1734249193838,-2012.74112569,0.000209,2]
[345421104,1734249193849,-2012.74112569,0.000209,2]
[345421105,1734249193860,-2012.74112569,0.000209,2]
[345421106,1734249193872,-2012.74112569,0.000209,2]
[345421107,1734249193883,-2012.74112569,0.000209,2]
[345421108,1734249193894,-2012.74112569,0.000209,2]
[345421109,1734249193905,-2012.74112569,0.000209,2]
[345421110,1734249193917,-2012.74112569,0.000209,2]
[345421111,1734249193929,-2012.74112569,0.000209,2]
[345421112,1734249193942,-2012.74112569,0.000209,2]
[345421113,1734249193953,-2012.74112569,0.000209,2]
[345421114,1734249193968,-2012.74112569,0.000209,2]
[345421115,1734249193980,-2012.74112569,0.000209,2]
[345421116,1734249193992,-2012.74112569,0.000209,2]
[345421117,1734249194004,-5569.37,0.00020915,7]
[345421118,1734249194017,-5569.37,0.00020915,7]
[345421119,1734249194028,-5569.37,0.00020915,7]
[345421120,1734249194041,-5569.37,0.00020915,7]
[345421121,1734249194052,-1732.67792484,0.00020944,2]
[345421122,1734249194065,-333.121506,0.00020948,7]
[345421123,1734249194076,-93517.98,0.00021,2]
[345421124,1734249194088,-4000.0,0.00021,3]
[345421125,1734249194099,-76879.6309841,0.00021,5]
[345421126,1734249194111,-28750.0,0.00021,120]
[345421127,1734249194123,-18000.0,0.00021,2]
[345421128,1734249194134,-513.67597205,0.00021,2]
[345421129,1734249194145,-500.0,0.00021,2]
[345421130,1734249194156,-500.0,0.00021,2]
[345421131,1734249194168,-500.0,0.00021,2]
[345421132,1734249194180,-400.0,0.00021,120]
[345421133,1734249194191,-10000.0,0.00021,2]
[345421134,1734249194202,-307.18513846,0.00021,2]
[345421135,1734249194213,-2110.0,0.00021,2]
[345421136,1734249194224,-2300.0,0.00021,30]
[345421137,1734249194236,-25549.357402,0.00021,2]
[345421138,1734249194247,-10000.0,0.00021,2]
[345421139,1734249194259,-10000.0,0.00021,2]
[345421140,1734249194271,-10000.0,0.00021,2]
[345421141,1734249194283,-650.0,0.00021,2]
[345421142,1734249194296,-393.0,0.00021,9]
[345421143,1734249194307,-156007.64690815,0.00021,7]
[345421144,1734249194318,-333.121506,0.00021048,9]
[345421145,1734249194330,-1732.67792484,0.00021056,2]
[345421146,1734249194342,-208.0,0.0002106,2]
[345421147,1734249194353,-200.0,0.0002106,2]
[345421148,1734249194364,-999.0,0.00021095,4]
[345421149,1734249194376,-1000.0,0.00021096,14]
[345421150,1734249194387,-30659.228883,0.000211,2]
[345421151,1734249194399,-1000.0,0.00021111,14]
[345421152,1734249194410,-1000.0,0.00021126,14]
[345421153,1734249194422,-1000.0,0.00021142,14]
[345421154,1734249194433,-333.121506,0.00021148,5]
[345421155,1734249194445,-1000.0,0.00021157,14]
[345421156,1734249194457,-1732.67792484,0.00021168,2]
[345421157,1734249194468,-1000.0,0.00021172,14]
[345421158,1734249194480,-1000.0,0.00021187,14]
[345421159,1734249194492,-5569.37,0.00021189,7]
[345421160,1734249194503,-5569.37,0.00021189,7]
[345421161,1734249194515,-800000.0,0.000212,2]
[345421162,1734249194534,-202831.99368878,0.000212,2]
[345421163,1734249194546,-209490.75218707,0.000212,2]
[345421164,1734249194558,-86229.95465255,0.000212,2]
[345421165,1734249194569,-24120.51392919,0.000212,2]
[345421166,1734249194580,-1730.72048894,0.000212,2]
[345421167,1734249194592,-30659.228883,0.000212,2]
[345421168,1734249194603,-1000.0,0.000212,2]
[345421169,1734249194615,-1000.0,0.00021202,14]
[345421170,1734249194626,-70000.0,0.0002121,2]
[345421171,1734249194637,-1000.0,0.00021218,14]
[345421172,1734249194649,-1000.0,0.00021233,14]
[345421173,1734249194660,-3028.16195558,0.0002124,2]
[345421174,1734249194672,-23086.67823223,0.0002124,2]
[345421175,1734249194683,-391798.37928205,0.00021246,2]
[345421176,1734249194694,-333.121506,0.00021248,7]
[345421177,1734249194706,-162383.74150806,0.00021248,2]
[345421178,1734249194717,-1000.0,0.00021248,14]
[345421179,1734249194729,-1000.0,0.00021263,14]
[345421180,1734249194740,-1000.0,0.00021279,14]
[345421181,1734249194752,-1732.67792484,0.0002128,2]
[345421182,1734249194762,-1000.0,0.00021294,14]
[345421183,1734249194780,-1000.0,0.00021309,14]
[345421184,1734249194792,-1000.0,0.00021324,14]
[345421185,1734249194803,-1000.0,0.00021339,14]
[345421186,1734249194815,-155228.06,0.00021348,8]
[345421187,1734249194828,-333.121506,0.00021348,8]
[345421188,1734249194840,-1000.0,0.00021355,14]
[345421189,1734249194852,-1155.30640446,0.0002137,14]
[345421190,1734249194863,-5016.0,0.0002137,2]
[345421191,1734249194874,-1732.67792484,0.00021392,2]
[345421192,1734249194887,-500.0,0.00021404,2]
[345421193,1734249194899,-333.121506,0.00021448,6]
[345421194,1734249194911,-5569.37,0.00021462,7]
[345421195,1734249194923,-5569.37,0.00021462,7]
[345421196,1734249194935,-81115.89541715,0.000215,4]
[345421197,1734249194947,-2110.0,0.000215,2]
[345421198,1734249194962,-393.0,0.000215,9]
[345421199,1734249194974,-1732.67792484,0.00021504,2]
[345421200,1734249194985,-4486.05801393,0.0002152,2]
[345421201,1734249194999,-208.0,0.0002153,2]
[345421202,1734249195011,-200.0,0.0002153,2]
[345421203,1734249195024,-6626.88558867,0.00021543,2]
[345421204,1734249195037,-333.121506,0.00021548,6]
[345421205,1734249195048,-23489.57677141,0.00021567,2]
[345421206,1734249195060,-1732.67792484,0.00021616,2]
[345421207,1734249195072,-333.121506,0.00021648,7]
[345421208,1734249195083,-158.23,0.00021658,2]
[345421209,1734249195095,-7223.87377012,0.000217,2]
[345421210,1734249195106,-1732.67792484,0.00021728,2]
[345421211,1734249195118,-5569.37,0.00021735,7]
[345421212,1734249195130,-5569.37,0.00021735,7]
[345421213,1734249195141,-333.121506,0.00021748,7]
[345421214,1734249195154,-187120.18062479,0.000218,2]
[345421215,1734249195165,-465.0,0.00021825,2]
[345421216,1734249195177,-1732.67792484,0.0002184,2]
[345421217,1734249195190,-333.121506,0.00021848,8]
[345421218,1734249195202,-118776.05117601,0.0002189,2]
[345421219,1734249195214,-836.11471095,0.0002189,2]
[345421220,1734249195226,-200.0,0.000219,2]
[345421221,1734249195238,-51901.77249939,0.00021917,4]
[345421222,1734249195249,-1079.07245115,0.00021917,4]
[345421223,1734249195261,-500.0,0.00021917,2]
[345421224,1734249195273,-533.90153003,0.00021917,2]
[345421225,1734249195284,-1797.81,0.00021917,2]
[345421226,1734249195297,-1797.81,0.00021917,2]
[345421227,1734249195308,-1797.81,0.00021917,2]
[345421228,1734249195321,-1797.81,0.00021917,2]
[345421229,1734249195333,-1797.81,0.00021917,2]
[345421230,1734249195345,-1797.81,0.00021917,2]
[345421231,1734249195358,-1797.81,0.00021917,2]
[345421232,1734249195371,-1797.81,0.00021917,2]
[345421233,1734249195382,-1797.81,0.00021917,2]
[345421234,1734249195395,-1797.81,0.00021917,2]
[345421235,1734249195408,-1797.81,0.00021917,2]
[345421236,1734249195421,-1797.81,0.00021917,2]
[345421237,1734249195433,-1797.81,0.00021917,2]
[345421238,1734249195445,-1797.81,0.00021917,2]
[345421239,1734249195457,-1797.81,0.00021917,2]
[345421240,1734249195468,-1797.81,0.00021917,2]
[345421241,1734249195481,-1797.81,0.00021917,2]
[345421242,1734249195492,-1797.81,0.00021917,2]
[345421243,1734249195504,-1797.81,0.00021917,2]
[345421244,1734249195516,-1797.81,0.00021917,2]
[345421245,1734249195529,-1797.81,0.00021917,2]
[345421246,1734249195542,-1797.81,0.00021917,2]
[345421247,1734249195555,-1797.81,0.00021917,2]
[345421248,1734249195567,-1798.0080415,0.00021917,2]
[345421249,1734249195579,-500.0,0.00021917,2]
[345421250,1734249195592,-500.0,0.00021917,2]
[345421251,1734249195604,-500.0,0.00021917,2]
[345421252,1734249195616,-500.0,0.00021917,2]
[345421253,1734249195629,-500.0,0.00021917,2]
[345421254,1734249195644,-500.0,0.00021917,2]
[345421255,1734249195656,-500.0,0.00021917,2]
[345421256,1734249195669,-500.0,0.00021917,2]
[345421257,1734249195682,-500.0,0.00021917,2]
[345421258,1734249195697,-500.0,0.00021917,2]
[345421259,1734249195709,-500.0,0.00021917,2]
[345421260,1734249195721,-500.0,0.00021917,2]
[345421261,1734249195734,-500.0,0.00021917,2]
[345421262,1734249195746,-500.0,0.00021917,2]
[345421263,1734249195759,-500.0,0.00021917,2]
[345421264,1734249195773,-500.0,0.00021917,2]
[345421265,1734249195787,-500.0,0.00021917,2]
[345421266,1734249195802,-500.0,0.00021917,2]
[345421267,1734249195816,-582.24569528,0.00021917,2]
[345421268,1734249195830,-500.0,0.00021917,2]
[345421269,1734249195844,-367.36803971,0.00021917,2]
[345421270,1734249195858,-600.0,0.00021917,2]
[345421271,1734249195872,-600.0,0.00021917,2]
[345421272,1734249195885,-600.0,0.00021917,2]
[345421273,1734249195898,-600.0,0.00021917,2]
[345421274,1734249195912,-600.0,0.00021917,2]
[345421275,1734249195925,-600.0,0.00021917,2]
[345421276,1734249195937,-600.0,0.00021917,2]
[345421277,1734249195951,-600.0,0.00021917,2]
[345421278,1734249195968,-316.94917361,0.00021917,2]
[345421279,1734249195982,-500.0,0.00021917,8]
[345421280,1734249195995,-500.0,0.00021917,8]
[345421281,1734249196009,-388.42811376,0.00021917,8]
[345421282,1734249196023,-375.98110257,0.00021917,2]
[345421283,1734249196039,-333.121506,0.00021948,9]
[345421284,1734249196053,-222.121513,0.00021948,2]
[345421285,1734249196067,-222.121513,0.00021948,3]
[345421286,1734249196081,-222.121513,0.00021948,4]
[345421287,1734249196094,-222.121513,0.00021948,5]
[345421288,1734249196107,-222.121513,0.00021948,6]
[345421289,1734249196121,-222.121513,0.00021948,7]
[345421290,1734249196134,-222.121513,0.00021948,8]
[345421291,1734249196148,-222.121513,0.00021948,9]
[345421292,1734249196161,-1732.67792484,0.00021952,7]
[345421293,1734249196174,-9954.07208084,0.00022,2]
[345421294,1734249196187,-14558.37,0.00022,3]
[345421295,1734249196200,-7529.04031715,0.00022,7]
[345421296,1734249196213,-7830.27208656,0.00022,2]
[345421297,1734249196227,-4663.91887227,0.00022,30]
[345421298,1734249196240,-244.99728036,0.00022,2]
[345421299,1734249196253,-8088.77142337,0.00022,2]
[345421300,1734249196266,-49296.60141262,0.00022,2]
[345421301,1734249196279,-754.23023519,0.00022,7]
[345421302,1734249196292,-7997.64545203,0.00022,15]
[345421303,1734249196305,-300.97202999,0.00022,5]
[345421304,1734249196318,-250.0,0.00022,120]
[345421305,1734249196331,-18318.71354779,0.00022,2]
[345421306,1734249196344,-500.0,0.00022,2]
[345421307,1734249196357,-500.0,0.00022,2]
[345421308,1734249196370,-500.0,0.00022,2]
[345421309,1734249196383,-800.0,0.00022,2]
[345421310,1734249196395,-500.0,0.00022,2]
[345421311,1734249196408,-500.0,0.00022,2]
[345421312,1734249196420,-500.0,0.00022,2]
[345421313,1734249196433,-500.0,0.00022,2]
[345421314,1734249196447,-800.0,0.00022,2]
[345421315,1734249196460,-500.0,0.00022,2]
[345421316,1734249196473,-500.0,0.00022,2]
[345421317,1734249196485,-500.0,0.00022,2]
[345421318,1734249196498,-500.0,0.00022,2]
[345421319,1734249196511,-500.0,0.00022,2]
[345421320,1734249196525,-500.0,0.00022,2]
[345421321,1734249196539,-900.0,0.00022,2]
[345421322,1734249196552,-500.0,0.00022,2]